[Event "Live Chess"]
[Site "Chess.com"]
[Date "2023.09.16"]
[Round "-"]
[White "Abofado"]
[Black "xadrecarloso"]
[Result "0-1"]
[WhiteElo "579"]
[BlackElo "937"]
[TimeControl "900+5"]
[EndTime "6:15:53 PDT"]
[Termination "xadrecarloso venceu por xeque-mate"]

1. e4 {[%clk 0:15:03.4]} 1... c5 {[%clk 0:15:00.6]} 2. Nf3 {[%clk 0:15:05.5]}
2... a6 {[%clk 0:15:01.9]} 3. d4 {[%clk 0:15:09.4]} 3... cxd4 {[%clk 0:15:04.3]}
4. Nxd4 {[%clk 0:15:13.7]} 4... b5 {[%clk 0:15:07.5]} 5. c4 {[%clk 0:15:15.6]}
5... Bb7 {[%clk 0:15:06.2]} 6. cxb5 {[%clk 0:15:16.2]} 6... Bxe4 {[%clk
0:15:00.6]} 7. bxa6 {[%clk 0:15:17.1]} 7... Rxa6 {[%clk 0:15:00.7]} 8. f3 {[%clk
0:15:07.3]} 8... Qa5+ {[%clk 0:14:58.9]} 9. Bd2 {[%clk 0:15:10.3]} 9... Qb6
{[%clk 0:14:21.3]} 10. Bc4 {[%clk 0:14:55.7]} 10... Ra8 {[%clk 0:14:02.8]} 11.
fxe4 {[%clk 0:14:58.9]} 11... Qxd4 {[%clk 0:14:05.2]} 12. b3 {[%clk 0:14:59.6]}
12... Qxa1 {[%clk 0:14:05.8]} 13. O-O {[%clk 0:14:57.7]} 13... Qd4+ {[%clk
0:14:07.7]} 14. Kh1 {[%clk 0:14:56.2]} 14... Qxe4 {[%clk 0:13:47.3]} 15. Nc3
{[%clk 0:14:48.3]} 15... Qb7 {[%clk 0:13:33.5]} 16. Qf3 {[%clk 0:14:46.9]} 16...
Qxf3 {[%clk 0:13:32.5]} 17. Rxf3 {[%clk 0:14:50]} 17... Nf6 {[%clk 0:13:28.2]}
18. Nb5 {[%clk 0:14:48.6]} 18... Rxa2 {[%clk 0:13:25.2]} 19. Bb4 {[%clk
0:14:41.4]} 19... d5 {[%clk 0:13:10.4]} 20. Bf1 {[%clk 0:14:42.4]} 20... Ng4
{[%clk 0:13:11.1]} 21. Nc7+ {[%clk 0:14:36.6]} 21... Kd8 {[%clk 0:13:12.8]} 22.
Nxd5 {[%clk 0:14:36.9]} 22... Nf2+ {[%clk 0:13:08.3]} 23. Kg1 {[%clk 0:14:37.4]}
23... e6 {[%clk 0:12:59.9]} 24. Be7+ {[%clk 0:14:25.3]} 24... Bxe7 {[%clk
0:13:01.4]} 25. Nxe7 {[%clk 0:14:30.2]} 25... Kxe7 {[%clk 0:13:04.9]} 26. h3
{[%clk 0:14:27.3]} 26... Nc6 {[%clk 0:12:53.1]} 27. b4 {[%clk 0:14:28.4]} 27...
Nd4 {[%clk 0:12:54]} 28. Rc3 {[%clk 0:14:24.7]} 28... Ra1 {[%clk 0:12:42.3]} 29.
Rc7+ {[%clk 0:14:25.3]} 29... Kf6 {[%clk 0:12:44.6]} 30. g4 {[%clk 0:14:26.9]}
30... Nxh3+ {[%clk 0:12:40.9]} 31. Kg2 {[%clk 0:14:27.9]} 31... Nf4+ {[%clk
0:12:37.5]} 32. Kg3 {[%clk 0:14:29.2]} 32... Nfe2+ {[%clk 0:12:33.7]} 33. Kf2
{[%clk 0:14:30.4]} 33... Rd8 {[%clk 0:12:19.2]} 34. b5 {[%clk 0:14:32.9]} 34...
Rc1 {[%clk 0:12:04.5]} 35. Ra7 {[%clk 0:14:28.4]} 35... Rc2 {[%clk 0:11:44.9]}
36. b6 {[%clk 0:14:29]} 36... Nf4+ {[%clk 0:11:44]} 37. Ke3 {[%clk 0:14:30.4]}
37... Nd5+ {[%clk 0:11:32.8]} 38. Kxd4 {[%clk 0:14:30.8]} 38... Rd2+ {[%clk
0:11:32.1]} 39. Kc5 {[%clk 0:14:33.3]} 39... Nf4 {[%clk 0:11:19.3]} 40. b7
{[%clk 0:14:34.5]} 40... Rc2+ {[%clk 0:11:23]} 41. Kb6 {[%clk 0:14:33.6]} 41...
Rd1 {[%clk 0:11:20.4]} 42. b8=Q {[%clk 0:14:33.2]} 42... Rb1+ {[%clk 0:11:23.6]}
43. Ka6 {[%clk 0:14:32.4]} 43... Ra2# {[%clk 0:11:27.4]} 0-1

[Event "Live Chess"]
[Site "Chess.com"]
[Date "2023.09.16"]
[Round "-"]
[White "Ggavioli"]
[Black "Mika635Isa"]
[Result "1-0"]
[WhiteElo "1560"]
[BlackElo "520"]
[TimeControl "900+5"]
[EndTime "6:16:05 PDT"]
[Termination "Ggavioli venceu por desistência"]

1. e4 {[%clk 0:15:04.2]} 1... e5 {[%clk 0:15:03.7]} 2. Nf3 {[%clk 0:15:07.7]}
2... Nf6 {[%clk 0:15:07.4]} 3. Nxe5 {[%clk 0:15:11.2]} 3... Nxe4 {[%clk
0:15:10.3]} 4. Qe2 {[%clk 0:15:14.1]} 4... d6 {[%clk 0:15:13.2]} 5. Qxe4 {[%clk
0:15:14.8]} 5... dxe5 {[%clk 0:15:16.3]} 6. Qxe5+ {[%clk 0:15:18.1]} 6... Be7
{[%clk 0:15:18.7]} 7. Nc3 {[%clk 0:15:21.4]} 7... O-O {[%clk 0:15:22.2]} 8. Be2
{[%clk 0:15:24.9]} 8... Bf6 {[%clk 0:14:54.6]} 9. Qd5 {[%clk 0:15:22.5]} 9... c6
{[%clk 0:14:03.3]} 10. Qxd8 {[%clk 0:15:21.7]} 10... Rxd8 {[%clk 0:14:06.6]} 11.
O-O {[%clk 0:15:21.5]} 11... Bf5 {[%clk 0:13:52.8]} 12. d3 {[%clk 0:15:13.4]}
12... Nd7 {[%clk 0:13:34.7]} 13. Bd2 {[%clk 0:15:08.5]} 13... Nc5 {[%clk
0:13:26.8]} 14. Rab1 {[%clk 0:15:00.5]} 14... b5 {[%clk 0:12:55.7]} 15. Be3
{[%clk 0:14:52.5]} 15... b4 {[%clk 0:11:48.7]} 16. Bxc5 {[%clk 0:14:30.9]} 16...
bxc3 {[%clk 0:11:44]} 17. bxc3 {[%clk 0:14:32.2]} 17... Bxc3 {[%clk 0:11:48]}
18. Rb3 {[%clk 0:14:34.1]} 18... Bd4 {[%clk 0:11:17.2]} 19. Bxd4 {[%clk
0:14:32.2]} 19... Rxd4 {[%clk 0:11:21.2]} 20. Rfb1 {[%clk 0:14:35]} 20... g6
{[%clk 0:11:19.7]} 21. Rb8+ {[%clk 0:14:38]} 21... Rxb8 {[%clk 0:11:20.3]} 22.
Rxb8+ {[%clk 0:14:42.9]} 22... Kg7 {[%clk 0:11:20.1]} 23. Rb7 {[%clk 0:14:46.3]}
23... a5 {[%clk 0:10:47.9]} 24. f3 {[%clk 0:14:38.8]} 24... Bc8 {[%clk
0:09:58.3]} 25. Rc7 {[%clk 0:14:29.2]} 25... Bd7 {[%clk 0:09:49.3]} 26. Kf2
{[%clk 0:14:20]} 26... Kf6 {[%clk 0:09:14.7]} 27. Ke3 {[%clk 0:14:13]} 27... Ke5
{[%clk 0:09:17]} 28. f4+ {[%clk 0:13:52.2]} 28... Kd5 {[%clk 0:09:00.5]} 29.
Rxd7+ {[%clk 0:13:54.6]} 29... Kc5 {[%clk 0:08:41.4]} 30. Rxd4 {[%clk
0:13:56.4]} 30... Kb5 {[%clk 0:08:03.7]} 31. Rd7 {[%clk 0:13:54.4]} 31... Kb4
{[%clk 0:08:03]} 32. Rxf7 {[%clk 0:13:56.3]} 32... a4 {[%clk 0:08:05.1]} 33.
Rxh7 {[%clk 0:14:00.5]} 33... Ka3 {[%clk 0:08:08.9]} 34. d4 {[%clk 0:14:01]}
34... Kxa2 {[%clk 0:08:12.1]} 35. Ra7 {[%clk 0:14:03.4]} 35... a3 {[%clk
0:08:16]} 36. Ra6 {[%clk 0:14:04.4]} 36... Kb2 {[%clk 0:08:19.3]} 37. Bc4 {[%clk
0:14:05.9]} 1-0

[Event "Live Chess"]
[Site "Chess.com"]
[Date "2023.09.16"]
[Round "-"]
[White "ABC2009V"]
[Black "gu1c0rrea"]
[Result "1-0"]
[WhiteElo "2023"]
[BlackElo "771"]
[TimeControl "900+5"]
[EndTime "6:16:21 PDT"]
[Termination "ABC2009V venceu por desistência"]

1. e4 {[%clk 0:15:02.4]} 1... e5 {[%clk 0:15:03.8]} 2. Nf3 {[%clk 0:15:06.6]}
2... Nc6 {[%clk 0:15:07.4]} 3. Bc4 {[%clk 0:15:10.5]} 3... Bc5 {[%clk
0:15:10.9]} 4. O-O {[%clk 0:15:13.6]} 4... Nf6 {[%clk 0:15:11.5]} 5. d3 {[%clk
0:15:17.3]} 5... O-O {[%clk 0:15:15.1]} 6. c3 {[%clk 0:15:21.5]} 6... d6 {[%clk
0:15:16.9]} 7. Nbd2 {[%clk 0:15:16.4]} 7... Bg4 {[%clk 0:15:12.2]} 8. Re1 {[%clk
0:15:16.3]} 8... d5 {[%clk 0:14:58.4]} 9. exd5 {[%clk 0:15:17.1]} 9... Nxd5
{[%clk 0:15:02.2]} 10. Ne4 {[%clk 0:15:20]} 10... Nf4 {[%clk 0:14:48.8]} 11.
Nxc5 {[%clk 0:15:15.2]} 11... Bxf3 {[%clk 0:14:31.1]} 12. Qxf3 {[%clk
0:15:08.2]} 12... Ne6 {[%clk 0:14:14.1]} 13. Bxe6 {[%clk 0:14:48.1]} 13... fxe6
{[%clk 0:14:14.5]} 14. Nxe6 {[%clk 0:14:25.7]} 14... Rxf3 {[%clk 0:14:17.3]} 15.
Nxd8 {[%clk 0:14:29.5]} 15... Rxd3 {[%clk 0:14:20.3]} 16. Nxc6 {[%clk 0:14:32]}
16... bxc6 {[%clk 0:14:22.7]} 17. Bg5 {[%clk 0:14:23.7]} 17... h6 {[%clk
0:14:19.2]} 18. Bh4 {[%clk 0:14:10.7]} 18... g5 {[%clk 0:14:11.6]} 19. Bg3
{[%clk 0:14:14.5]} 19... Rad8 {[%clk 0:13:54.3]} 20. Bxe5 {[%clk 0:14:04.2]}
20... Rd2 {[%clk 0:13:47.1]} 21. Bxc7 {[%clk 0:14:07]} 21... R8d7 {[%clk
0:13:48.4]} 22. Ba5 {[%clk 0:14:00.8]} 22... Rxb2 {[%clk 0:13:47.8]} 23. Rad1
{[%clk 0:13:51.7]} 23... Rbd2 {[%clk 0:13:39.3]} 24. Rxd2 {[%clk 0:13:47.6]}
24... Rxd2 {[%clk 0:13:43.2]} 25. a3 {[%clk 0:13:51.7]} 25... Ra2 {[%clk
0:13:44.6]} 26. Bb4 {[%clk 0:13:55.1]} 26... Kf7 {[%clk 0:13:35.3]} 27. g3
{[%clk 0:13:56.7]} 27... Kg6 {[%clk 0:13:39.4]} 28. Re6+ {[%clk 0:14:00.1]}
28... Kh5 {[%clk 0:13:42.3]} 29. Rxc6 {[%clk 0:14:04.5]} 29... Kg4 {[%clk
0:13:40.5]} 30. Kg2 {[%clk 0:14:08.3]} 30... h5 {[%clk 0:13:40.7]} 31. h3+
{[%clk 0:14:00.6]} 31... Kf5 {[%clk 0:13:39.6]} 32. Rc5+ {[%clk 0:14:04.4]}
32... Kg6 {[%clk 0:13:39.8]} 33. Ra5 {[%clk 0:14:07.8]} 33... h4 {[%clk
0:13:26.3]} 34. Rxa7 {[%clk 0:14:09.3]} 34... hxg3 {[%clk 0:13:28.3]} 35. Kxg3
{[%clk 0:14:14.2]} 35... Kh5 {[%clk 0:13:30.6]} 36. Ra5 {[%clk 0:14:08.7]} 36...
Ra1 {[%clk 0:13:30.3]} 37. Be7 {[%clk 0:14:04.6]} 37... Rg1+ {[%clk 0:13:32.1]}
38. Kh2 {[%clk 0:14:08.9]} 38... Rc1 {[%clk 0:13:25]} 39. Bxg5 {[%clk 0:14:08]}
39... Rxc3 {[%clk 0:13:28.6]} 40. Bd2+ {[%clk 0:14:11.9]} 1-0

[Event "Live Chess"]
[Site "Chess.com"]
[Date "2023.09.16"]
[Round "-"]
[White "Giulliajapa007"]
[Black "dani_reitas"]
[Result "0-1"]
[WhiteElo "998"]
[BlackElo "1021"]
[TimeControl "900+5"]
[EndTime "6:16:41 PDT"]
[Termination "dani_reitas venceu por xeque-mate"]

1. e4 {[%clk 0:15:02.1]} 1... e6 {[%clk 0:15:00.9]} 2. d4 {[%clk 0:14:50.1]}
2... d5 {[%clk 0:15:04.4]} 3. e5 {[%clk 0:14:51.3]} 3... c5 {[%clk 0:15:08.2]}
4. c3 {[%clk 0:14:42.8]} 4... Nc6 {[%clk 0:15:11.1]} 5. Nf3 {[%clk 0:14:40.3]}
5... Be7 {[%clk 0:15:13]} 6. Be2 {[%clk 0:14:32.5]} 6... Bd7 {[%clk 0:15:15.4]}
7. O-O {[%clk 0:14:26.6]} 7... cxd4 {[%clk 0:15:18.4]} 8. cxd4 {[%clk
0:14:29.7]} 8... Bb4 {[%clk 0:15:20.6]} 9. Nc3 {[%clk 0:14:22.6]} 9... Nge7
{[%clk 0:15:23.5]} 10. a3 {[%clk 0:14:24.3]} 10... Ba5 {[%clk 0:15:24.9]} 11. b4
{[%clk 0:14:26.8]} 11... Bb6 {[%clk 0:15:28.4]} 12. Nb5 {[%clk 0:14:27]} 12...
O-O {[%clk 0:15:25.5]} 13. Bg5 {[%clk 0:14:09.2]} 13... h6 {[%clk 0:15:22.7]}
14. Bxe7 {[%clk 0:13:56.7]} 14... Qxe7 {[%clk 0:15:25.7]} 15. Rc1 {[%clk
0:13:18.3]} 15... a6 {[%clk 0:15:27.5]} 16. Nc3 {[%clk 0:13:16.4]} 16... Rac8
{[%clk 0:15:14.1]} 17. b5 {[%clk 0:13:17.5]} 17... axb5 {[%clk 0:15:16.7]} 18.
Bxb5 {[%clk 0:13:18.7]} 18... f6 {[%clk 0:14:34.1]} 19. a4 {[%clk 0:12:28.3]}
19... fxe5 {[%clk 0:14:22.3]} 20. dxe5 {[%clk 0:12:22.4]} 20... Bc7 {[%clk
0:14:14.4]} 21. Qd3 {[%clk 0:11:39.6]} 21... Nxe5 {[%clk 0:13:42.8]} 22. Nxe5
{[%clk 0:11:36]} 22... Bxe5 {[%clk 0:13:37.6]} 23. Qg6 {[%clk 0:11:22.6]} 23...
Rxc3 {[%clk 0:13:19.7]} 24. Rxc3 {[%clk 0:11:10.1]} 24... Bxc3 {[%clk
0:13:22.4]} 25. Bd3 {[%clk 0:11:10.3]} 25... Rc8 {[%clk 0:12:54.1]} 26. Qh7+
{[%clk 0:11:03.1]} 26... Kf8 {[%clk 0:12:57.4]} 27. Bg6 {[%clk 0:10:53.6]} 27...
Qd8 {[%clk 0:11:52.7]} 28. Qh8+ {[%clk 0:10:43.5]} 28... Ke7 {[%clk 0:11:56.3]}
29. Qxg7+ {[%clk 0:10:45.5]} 29... Bxg7 {[%clk 0:11:58.7]} 30. Re1 {[%clk
0:10:42.7]} 30... Bxa4 {[%clk 0:12:02.2]} 31. h3 {[%clk 0:10:45.3]} 31... Bc3
{[%clk 0:11:59.9]} 32. Re3 {[%clk 0:10:43.4]} 32... Bd4 {[%clk 0:11:58.5]} 33.
Re2 {[%clk 0:10:32.2]} 33... Rc1+ {[%clk 0:12:01.5]} 34. Kh2 {[%clk 0:10:34.5]}
34... Qd6+ {[%clk 0:12:02.9]} 35. g3 {[%clk 0:10:37.8]} 35... Be5 {[%clk
0:12:05.4]} 36. f4 {[%clk 0:10:35.9]} 36... Rc3 {[%clk 0:12:04.3]} 37. fxe5
{[%clk 0:10:36.1]} 37... Qc5 {[%clk 0:12:07.2]} 38. h4 {[%clk 0:10:19.1]} 38...
Rc2 {[%clk 0:12:10.5]} 39. Rxc2 {[%clk 0:10:20.7]} 39... Bxc2 {[%clk 0:12:14.2]}
40. Bxc2 {[%clk 0:10:21.8]} 40... Qxc2+ {[%clk 0:12:17.2]} 41. Kh3 {[%clk
0:10:25.9]} 41... Kf7 {[%clk 0:12:21.2]} 42. Kg4 {[%clk 0:10:29]} 42... Kg6
{[%clk 0:12:24.9]} 43. h5+ {[%clk 0:10:32]} 43... Kg7 {[%clk 0:12:28.3]} 44. Kf4
{[%clk 0:10:32.5]} 44... Qf5+ {[%clk 0:12:32]} 45. Ke3 {[%clk 0:10:34.7]} 45...
Qxh5 {[%clk 0:12:36]} 46. Kf4 {[%clk 0:10:37.9]} 46... Qg5+ {[%clk 0:12:39.9]}
47. Kf3 {[%clk 0:10:41.1]} 47... Kg6 {[%clk 0:12:43.7]} 48. g4 {[%clk
0:10:44.4]} 48... Qxe5 {[%clk 0:12:47.5]} 49. Kg2 {[%clk 0:10:48.1]} 49... Kg5
{[%clk 0:12:51.3]} 50. Kf2 {[%clk 0:10:52]} 50... Qc3 {[%clk 0:12:54.8]} 51. Ke2
{[%clk 0:10:55.4]} 51... Kxg4 {[%clk 0:12:58.8]} 52. Kf2 {[%clk 0:10:59.3]}
52... Kf4 {[%clk 0:13:02.4]} 53. Ke2 {[%clk 0:11:03.2]} 53... Qe3+ {[%clk
0:13:04.4]} 54. Kf1 {[%clk 0:11:06.8]} 54... Qd2 {[%clk 0:13:08.1]} 55. Kg1
{[%clk 0:11:10.3]} 55... Kg3 {[%clk 0:13:12.2]} 56. Kf1 {[%clk 0:11:11.8]} 56...
Qf2# {[%clk 0:13:16.5]} 0-1

[Event "Live Chess"]
[Site "Chess.com"]
[Date "2023.09.16"]
[Round "-"]
[White "Arthur1611br"]
[Black "mary260210"]
[Result "0-1"]
[WhiteElo "1009"]
[BlackElo "850"]
[TimeControl "900+5"]
[EndTime "6:17:10 PDT"]
[Termination "mary260210 venceu por desistência"]

1. e4 {[%clk 0:15:00.2]} 1... e5 {[%clk 0:15:03]} 2. Bc4 {[%clk 0:15:00.8]} 2...
Nf6 {[%clk 0:15:00.3]} 3. Nf3 {[%clk 0:14:59.3]} 3... d6 {[%clk 0:14:57.8]} 4.
d4 {[%clk 0:14:57.9]} 4... Nxe4 {[%clk 0:14:53.3]} 5. Qe2 {[%clk 0:14:53.4]}
5... Nf6 {[%clk 0:14:56.1]} 6. dxe5 {[%clk 0:14:54.5]} 6... dxe5 {[%clk
0:14:59.6]} 7. Nxe5 {[%clk 0:14:58]} 7... Qd6 {[%clk 0:14:32.9]} 8. Bf4 {[%clk
0:14:49.6]} 8... Qe7 {[%clk 0:14:26.8]} 9. O-O {[%clk 0:14:42]} 9... Nc6 {[%clk
0:14:29.9]} 10. Nxc6 {[%clk 0:14:38.5]} 10... Qxe2 {[%clk 0:14:29.1]} 11. Bxe2
{[%clk 0:14:41.9]} 11... bxc6 {[%clk 0:14:32.8]} 12. Bc4 {[%clk 0:14:43]} 12...
Bd6 {[%clk 0:14:32.2]} 13. Re1+ {[%clk 0:14:46.6]} 13... Be6 {[%clk 0:14:24.9]}
14. Bg5 {[%clk 0:14:43.9]} 14... O-O {[%clk 0:14:25.2]} 15. Ba6 {[%clk
0:14:37.4]} 15... h6 {[%clk 0:14:07.1]} 16. Bxf6 {[%clk 0:14:36.4]} 16... gxf6
{[%clk 0:14:10.8]} 17. Nc3 {[%clk 0:14:35.8]} 17... Bf5 {[%clk 0:14:03.3]} 18.
Rac1 {[%clk 0:14:29.4]} 18... Rfe8 {[%clk 0:13:58.6]} 19. Bd3 {[%clk 0:14:19.3]}
19... Rxe1+ {[%clk 0:13:54.7]} 20. Rxe1 {[%clk 0:14:21.6]} 20... Bxd3 {[%clk
0:13:58.3]} 21. cxd3 {[%clk 0:14:25.2]} 21... Rb8 {[%clk 0:14:00.3]} 22. b3
{[%clk 0:14:16.6]} 22... Bb4 {[%clk 0:14:01]} 23. Rc1 {[%clk 0:14:16]} 23... Re8
{[%clk 0:13:56.3]} 24. h3 {[%clk 0:14:10.1]} 24... Re5 {[%clk 0:13:58.6]} 25.
Ne4 {[%clk 0:14:08.4]} 25... Kg7 {[%clk 0:13:47.1]} 26. f4 {[%clk 0:14:05.8]}
26... Rd5 {[%clk 0:13:48.5]} 27. Rxc6 {[%clk 0:13:59.5]} 27... Rxd3 {[%clk
0:13:27.5]} 28. Nxf6 {[%clk 0:13:48.3]} 28... Rd6 {[%clk 0:13:21.4]} 29. Rc5
{[%clk 0:13:50.5]} 29... Bxc5+ {[%clk 0:13:23.7]} 0-1

[Event "Live Chess"]
[Site "Chess.com"]
[Date "2023.09.16"]
[Round "-"]
[White "vitinho_lawliet"]
[Black "daniel-drummond"]
[Result "1/2-1/2"]
[WhiteElo "951"]
[BlackElo "1542"]
[TimeControl "900+5"]
[EndTime "6:18:09 PDT"]
[Termination "Empate por repetição"]

1. e4 {[%clk 0:14:59.9]} 1... e5 {[%clk 0:15:04]} 2. Nf3 {[%clk 0:15:01.4]} 2...
Nc6 {[%clk 0:15:08.9]} 3. Bc4 {[%clk 0:15:02.8]} 3... Nf6 {[%clk 0:15:07.9]} 4.
Nc3 {[%clk 0:15:04.6]} 4... Be7 {[%clk 0:15:10.7]} 5. d3 {[%clk 0:15:07]} 5...
O-O {[%clk 0:15:14.9]} 6. O-O {[%clk 0:15:10.4]} 6... d6 {[%clk 0:15:18.8]} 7.
Bg5 {[%clk 0:15:14.1]} 7... h6 {[%clk 0:15:20.8]} 8. Bxf6 {[%clk 0:15:16.9]}
8... Bxf6 {[%clk 0:15:25.7]} 9. Nd5 {[%clk 0:15:08.8]} 9... Na5 {[%clk
0:15:22.3]} 10. Bb5 {[%clk 0:15:03.8]} 10... c6 {[%clk 0:15:24.6]} 11. Nxf6+
{[%clk 0:15:03.6]} 11... Qxf6 {[%clk 0:15:29.5]} 12. Bc4 {[%clk 0:15:06.7]}
12... Nxc4 {[%clk 0:15:31.7]} 13. dxc4 {[%clk 0:15:09.9]} 13... Bg4 {[%clk
0:15:36.6]} 14. h3 {[%clk 0:15:12.6]} 14... Bxf3 {[%clk 0:15:38.3]} 15. Qxf3
{[%clk 0:15:13.7]} 15... Qxf3 {[%clk 0:15:41.1]} 16. gxf3 {[%clk 0:15:17.1]}
16... f5 {[%clk 0:15:44.9]} 17. Rfe1 {[%clk 0:15:12.7]} 17... fxe4 {[%clk
0:15:37.1]} 18. fxe4 {[%clk 0:15:16]} 18... Rf4 {[%clk 0:15:42]} 19. Rad1 {[%clk
0:15:14.8]} 19... Rd8 {[%clk 0:15:43.1]} 20. c5 {[%clk 0:15:15.3]} 20... d5
{[%clk 0:15:43]} 21. exd5 {[%clk 0:15:16.5]} 21... cxd5 {[%clk 0:15:47.9]} 22.
c4 {[%clk 0:15:15.4]} 22... Rxc4 {[%clk 0:15:34.9]} 23. Rxe5 {[%clk 0:15:19]}
23... Rxc5 {[%clk 0:15:36.8]} 24. b4 {[%clk 0:15:21.5]} 24... Rb5 {[%clk
0:15:39.4]} 25. a3 {[%clk 0:15:17.1]} 25... Kf7 {[%clk 0:15:35.7]} 26. f4 {[%clk
0:15:19.7]} 26... Kf6 {[%clk 0:15:38.8]} 27. h4 {[%clk 0:15:20.7]} 27... a5
{[%clk 0:15:38.9]} 28. bxa5 {[%clk 0:15:21.3]} 28... Rxa5 {[%clk 0:15:42.6]} 29.
Rd3 {[%clk 0:15:23.5]} 29... Rc5 {[%clk 0:15:42]} 30. a4 {[%clk 0:15:15.8]}
30... Ra8 {[%clk 0:15:34]} 31. Rb3 {[%clk 0:15:13.8]} 31... Rxa4 {[%clk
0:15:36.2]} 32. Rb6+ {[%clk 0:15:16.8]} 32... Rc6 {[%clk 0:15:30.6]} 33. Rxb7
{[%clk 0:15:19.2]} 33... Rxf4 {[%clk 0:15:33.5]} 34. Rxd5 {[%clk 0:15:20.1]}
34... Rxh4 {[%clk 0:15:35.7]} 35. Kg2 {[%clk 0:15:20.5]} 35... Rg4+ {[%clk
0:15:37]} 36. Kf3 {[%clk 0:15:23.8]} 36... Rg5 {[%clk 0:15:41.2]} 37. Rdd7
{[%clk 0:15:26]} 37... Rc4 {[%clk 0:15:38.3]} 38. Rf7+ {[%clk 0:15:28.6]} 38...
Ke5 {[%clk 0:15:34.2]} 39. Rfe7+ {[%clk 0:15:28]} 39... Kd6 {[%clk 0:15:34.8]}
40. Rbd7+ {[%clk 0:15:30.7]} 40... Kc6 {[%clk 0:15:38]} 41. Rc7+ {[%clk
0:15:32.9]} 41... Kd5 {[%clk 0:15:39.8]} 42. Rxg7 {[%clk 0:15:31.6]} 42... Rxc7
{[%clk 0:15:41.4]} 43. Rxc7 {[%clk 0:15:33.2]} 43... Kd4 {[%clk 0:15:42.8]} 44.
Rd7+ {[%clk 0:15:32.8]} 44... Ke5 {[%clk 0:15:46]} 45. Re7+ {[%clk 0:15:33.5]}
45... Kf6 {[%clk 0:15:48.9]} 46. Rh7 {[%clk 0:15:34.4]} 46... Kg6 {[%clk
0:15:52.2]} 47. Ra7 {[%clk 0:15:37.3]} 47... h5 {[%clk 0:15:54]} 48. Kf4 {[%clk
0:15:40]} 48... Rg4+ {[%clk 0:15:56.1]} 49. Kf3 {[%clk 0:15:43.1]} 49... Kg5
{[%clk 0:15:57.9]} 50. Ra5+ {[%clk 0:15:43.5]} 50... Kh4 {[%clk 0:15:59.8]} 51.
Ra1 {[%clk 0:15:32.1]} 51... Rg3+ {[%clk 0:15:59.3]} 52. Kf4 {[%clk 0:15:36]}
52... Rg4+ {[%clk 0:16:03.3]} 53. Kf3 {[%clk 0:15:37.6]} 53... Rg3+ {[%clk
0:16:07.1]} 54. Kf4 {[%clk 0:15:41.4]} 54... Rg4+ {[%clk 0:16:11]} 55. Kf5
{[%clk 0:15:45.4]} 55... Rg5+ {[%clk 0:16:14.4]} 56. Kf6 {[%clk 0:15:45.8]}
56... Rg3 {[%clk 0:16:14.6]} 57. Kf5 {[%clk 0:15:44.2]} 57... Rg5+ {[%clk
0:16:16.1]} 58. Kf4 {[%clk 0:15:46.6]} 58... Rg4+ {[%clk 0:16:20.4]} 1/2-1/2

[Event "Live Chess"]
[Site "Chess.com"]
[Date "2023.09.16"]
[Round "-"]
[White "Francisco_Ferrari"]
[Black "AnthonyGabriel1"]
[Result "1-0"]
[WhiteElo "2169"]
[BlackElo "2187"]
[TimeControl "900+5"]
[EndTime "6:18:10 PDT"]
[Termination "Francisco_Ferrari venceu por desistência"]

1. d4 {[%clk 0:14:59.3]} 1... Nf6 {[%clk 0:15:04.3]} 2. Nf3 {[%clk 0:15:02.7]}
2... d5 {[%clk 0:15:08.4]} 3. g3 {[%clk 0:15:06.1]} 3... g6 {[%clk 0:15:05.5]}
4. Bg2 {[%clk 0:15:08.4]} 4... Bg7 {[%clk 0:15:10]} 5. O-O {[%clk 0:15:12.3]}
5... O-O {[%clk 0:15:14.2]} 6. b3 {[%clk 0:15:01.1]} 6... b6 {[%clk 0:15:13]} 7.
Bb2 {[%clk 0:15:04.9]} 7... Bb7 {[%clk 0:15:14.7]} 8. Nbd2 {[%clk 0:15:07.6]}
8... c5 {[%clk 0:14:24.9]} 9. c4 {[%clk 0:14:59.3]} 9... dxc4 {[%clk 0:14:19.4]}
10. Nxc4 {[%clk 0:14:55.4]} 10... Nbd7 {[%clk 0:13:18.4]} 11. dxc5 {[%clk
0:14:16.2]} 11... Nxc5 {[%clk 0:13:21.3]} 12. Qxd8 {[%clk 0:14:19.9]} 12...
Rfxd8 {[%clk 0:13:25.3]} 13. Rfd1 {[%clk 0:14:24.1]} 13... Rac8 {[%clk
0:12:34.4]} 14. Rac1 {[%clk 0:13:56.4]} 14... Rxd1+ {[%clk 0:11:30.8]} 15. Rxd1
{[%clk 0:13:59.4]} 15... Ne6 {[%clk 0:09:55.6]} 16. Bh3 {[%clk 0:11:24.8]} 16...
Ba6 {[%clk 0:08:52.5]} 17. Ng5 {[%clk 0:09:54.8]} 17... Bxc4 {[%clk 0:07:45.1]}
18. bxc4 {[%clk 0:09:56.5]} 18... Rc6 {[%clk 0:07:47.6]} 19. Bxe6 {[%clk
0:09:47.9]} 19... fxe6 {[%clk 0:07:50.9]} 20. Rd8+ {[%clk 0:09:51.9]} 20... Bf8
{[%clk 0:07:55.3]} 21. Ba3 {[%clk 0:09:56]} 21... h6 {[%clk 0:07:49.3]} 22. Bxe7
{[%clk 0:09:51.8]} 22... hxg5 {[%clk 0:07:37.8]} 23. Rxf8+ {[%clk 0:09:41.8]}
1-0

[Event "Live Chess"]
[Site "Chess.com"]
[Date "2023.09.16"]
[Round "-"]
[White "GabrielGGCF"]
[Black "ArthurMPRJ"]
[Result "0-1"]
[WhiteElo "1459"]
[BlackElo "1231"]
[TimeControl "900+5"]
[EndTime "6:18:37 PDT"]
[Termination "ArthurMPRJ venceu por desistência"]

1. e4 {[%clk 0:15:03.1]} 1... c5 {[%clk 0:15:03.5]} 2. c3 {[%clk 0:15:06.1]}
2... d5 {[%clk 0:15:06.9]} 3. exd5 {[%clk 0:15:09.5]} 3... Qxd5 {[%clk
0:15:11.8]} 4. d4 {[%clk 0:15:13.6]} 4... e6 {[%clk 0:15:15.3]} 5. Nf3 {[%clk
0:15:14.3]} 5... Nf6 {[%clk 0:15:19.3]} 6. Bb5+ {[%clk 0:15:08.1]} 6... Bd7
{[%clk 0:15:21]} 7. Bxd7+ {[%clk 0:15:11.4]} 7... Nbxd7 {[%clk 0:15:20.8]} 8.
O-O {[%clk 0:15:10.9]} 8... cxd4 {[%clk 0:15:21]} 9. Qxd4 {[%clk 0:15:10.7]}
9... Bc5 {[%clk 0:15:20.9]} 10. Qxd5 {[%clk 0:15:05.7]} 10... Nxd5 {[%clk
0:15:25.8]} 11. Rd1 {[%clk 0:15:02]} 11... O-O-O {[%clk 0:15:22.4]} 12. Bg5
{[%clk 0:15:02.4]} 12... f6 {[%clk 0:15:23.2]} 13. Bh4 {[%clk 0:15:05.1]} 13...
N7b6 {[%clk 0:15:18.6]} 14. Na3 {[%clk 0:15:01.5]} 14... Bxa3 {[%clk 0:15:19.6]}
15. bxa3 {[%clk 0:15:03.6]} 15... Nc4 {[%clk 0:15:07.4]} 16. Rac1 {[%clk
0:14:51.6]} 16... Nxa3 {[%clk 0:13:14.3]} 17. c4 {[%clk 0:14:51.5]} 17... Nf4
{[%clk 0:12:53.4]} 18. Rxd8+ {[%clk 0:14:10.9]} 18... Rxd8 {[%clk 0:12:54.2]}
19. Bg3 {[%clk 0:14:12.5]} 19... Ne2+ {[%clk 0:12:56.2]} 20. Kf1 {[%clk
0:14:09.1]} 20... Nxc1 {[%clk 0:12:58.8]} 21. Ke1 {[%clk 0:14:08.8]} 21... Nc2+
{[%clk 0:12:55.7]} 22. Kf1 {[%clk 0:14:10.8]} 22... Rd1+ {[%clk 0:12:58.9]} 0-1